[Event "Fagernes Chess GM-Swiss 2024"]
[Site "Fagernes"]
[Date "2024.03.25"]
[Round "2"]
[White "Eliseev, Sergey"]
[Black "Bech, Havard Eriksen"]
[Result "1-0"]
[ECO "B13"]
[WhiteElo "2131"]
[BlackElo "1951"]
[Annotator "RC"]
[PlyCount "149"]
[EventDate "2024.03.25"]
[EventType "swiss"]
[EventCountry "NOR"]
[SourceTitle "playchess.com"]
[Source "ChessBase"]
[SourceQuality "1"]
[TimeControl "40/6000+30:2400+30"]

1. e4 {[%emt 0:02:35]} c6 {[%emt 0:00:15]} 2. d4 {[%emt 0:00:02]} d5 {[%emt 0:00:08]} 3. exd5 {[%emt 0:00:06]} cxd5 {[%emt 0:00:11]} 4. Bd3 {[%emt 0:00:04]} Nc6 {[%emt 0:00:17]} 5. c3 {[%emt 0:00:02]} Nf6 {[%emt 0:01:52]} 6. h3 {[%emt 0:00:33]} e5 {[%emt 0:01:45]} 7. dxe5 {[%emt 0:00:10]} Nxe5 {[%emt 0:00:16]} 8. Nf3 {[%emt 0:00:05]} Nxd3+ {[%emt 0:00:35]} 9. Qxd3 {[%emt 0:00:02]} Bd6 {[%emt 0:00:38]} 10. O-O {[%emt 0:00:22]} O-O {[%emt 0:00:30]} 11. Bg5 {[%emt 0:00:33]} h6 {[%emt 0:01:28]} 12. Bh4 {[%emt 0:00:29]} g5 {[%emt 0:15:30]} 13. Bg3 {[%emt 0:00:31]} Bxg3 {[%emt 0:05:25]} 14. fxg3 {[%emt 0:00:03]} Ne4 {[%emt 0:02:53]} 15. Nd4 {[%emt 0:00:14]} f5 {[%emt 0:00:52]} 16. Nd2 {[%emt 0:00:59]} Qd6 {[%emt 0:06:41]} 17. Rf3 {[%emt 0:06:40]} Bd7 {[%emt 0:14:45]} 18. Raf1 {[%emt 0:04:57]} Qe5 {[%emt 0:04:44]} 19. N2b3 {[%emt 0:11:19]} Rae8 {[%emt 0:11:48]} 20. Ne2 {[%emt 0:16:02]} h5 {[%emt 0:08:04]} 21. Nbd4 {[%emt 0:05:50]} Re7 {[%emt 0:02:59]} 22. h4 {[%emt 0:06:55]} gxh4 {[%emt 0:05:42]} 23. gxh4 {[%emt 0:02:28]} Rg7 {[%emt 0:00:14]} 24. Nf4 {[%emt 0:03:44]} Rg4 {[%emt 0:06:16]} 25. g3 {[%emt 0:00:51]} Rf7 {[%emt 0:07:09]} 26. Kh2 {[%emt 0:01:07]} Rfg7 {[%emt 0:01:43]} 27. Nde2 {[%emt 0:00:49]} Kh8 {[%emt 0:03:40]} 28. Kh3 {[%emt 0:06:57]} a6 {[%emt 0:01:17]} 29. Rg1 {[%emt 0:04:33]} Bb5 {[%emt 0:02:04]} 30. Qd4 {[%emt 0:00:17]} Qe8 {[%emt 0:03:49]} 31. Nc1 {[%emt 0:00:48]} Bc6 {[%emt 0:01:56]} 32. Ncd3 {[%emt 0:02:28]} Kh7 {[%emt 0:00:18]} 33. Kh2 {[%emt 0:03:12]} Re7 {[%emt 0:00:41]} 34. Nf2 {[%emt 0:05:41]} Rg8 {[%emt 0:00:31]} 35. N4h3 {[%emt 0:02:32]} Qg6 {[%emt 0:00:30]} 36. Nd1 {[%emt 0:06:23]} Qg4 {[%emt 0:00:23]} 37. Rf4 {[%emt 0:03:00]} Qg6 {[%emt 0:00:34]} 38. Ne3 {[%emt 0:00:42]} Rf8 {[%emt 0:00:31]} 39. Rf3 {[%emt 0:05:16]} Qg8 {[%emt 0:00:33]} 40. Rxf5 {[%emt 0:08:37]} Rxf5 {[%emt 0:00:22]} 41. Nxf5 {[%emt 0:40:04]} Rf7 {[%emt 0:40:34]} 42. Ne3 {[%emt 0:00:00]} Rf3 {[%emt 0:00:00]} 43. c4 {[%emt 0:00:00]} dxc4 {[%emt 0:00:00]} 44. Nxc4 {[%emt 0:00:00]} Rxg3 {[%emt 0:00:00]} 45. Ng5+ {[%emt 0:00:00]} Nxg5 {[%emt 0:00:00]} 46. Rxg3 {[%emt 0:00:00]} Nf3+ {[%emt 0:00:00]} 47. Rxf3 {[%emt 0:00:00]} Bxf3 {[%emt 0:00:00]} 48. Qd3+ {[%emt 0:00:00]} Kh6 {[%emt 0:00:00]} 49. Qe3+ {[%emt 0:00:00]} Kg7 {[%emt 0:00:00]} 50. Qg5+ {[%emt 0:01:31]} Kh7 {[%emt 0:00:00]} 51. Qf5+ {[%emt 0:00:07]} Kg7 {[%emt 0:00:00]} 52. Ne5 {[%emt 0:02:43]} Bd5 {[%emt 0:00:00]} 53. Qg5+ {[%emt 0:01:54]} Kh7 {[%emt 0:00:00]} 54. Qxh5+ {[%emt 0:00:02]} Kg7 {[%emt 0:00:00]} 55. Qg6+ {[%emt 0:01:04]} Kf8 {[%emt 0:00:00]} 56. Qd6+ {[%emt 0:00:01]} Ke8 {[%emt 0:00:00]} 57. Ng6 {[%emt 0:02:19]} Qe6 {[%emt 0:00:00]} 58. Qxe6+ {[%emt 0:00:20]} Bxe6 {[%emt 0:00:00]} 59. a3 {[%emt 0:00:11]} Kf7 {[%emt 0:00:43]} 60. Nf4 {[%emt 0:00:14]} Bf5 {[%emt 0:00:16]} 61. Kg3 {[%emt 0:00:28]} Be4 {[%emt 0:01:28]} 62. Ne2 {[%emt 0:00:15]} Kg6 {[%emt 0:01:17]} 63. Kf4 {[%emt 0:00:06]} Bc6 {[%emt 0:01:43]} 64. Nd4 {[%emt 0:01:41]} Bh1 {[%emt 0:00:46]} 65. Nf5 {[%emt 0:00:58]} Bg2 {[%emt 0:00:56]} 66. Ng3 {[%emt 0:00:59]} Bc6 {[%emt 0:00:16]} 67. Ke5 {[%emt 0:00:05]} Bf3 {[%emt 0:00:40]} 68. Kd6 {[%emt 0:00:36]} Bg2 {[%emt 0:00:32]} 69. Kc5 {[%emt 0:00:42]} Bf3 {[%emt 0:00:32]} 70. a4 {[%emt 0:00:16]} Kf6 {[%emt 0:00:41]} 71. a5 {[%emt 0:00:07]} Kg6 {[%emt 0:00:30]} 72. b4 {[%emt 0:00:42]} Kf6 {[%emt 0:00:57]} 73. Kb6 {[%emt 0:00:01]} Ke6 {[%emt 0:00:26]} 74. h5 {[%emt 0:00:14]} Bd1 {[%emt 0:00:47]} 75. Kxb7 {[%emt 0:00:35]} 1-0

[Event "Fagernes Chess GM-Swiss 2024"]
[Site "Fagernes"]
[Date "2024.03.25"]
[Round "2"]
[White "Fiskaaen, Martin Holten"]
[Black "Skramstad, Oda Kofoed"]
[Result "1-0"]
[ECO "E71"]
[WhiteElo "2118"]
[BlackElo "1945"]
[Annotator "NA RC"]
[PlyCount "75"]
[EventDate "2024.03.25"]
[EventType "swiss"]
[EventCountry "NOR"]
[SourceTitle "playchess.com"]
[Source "ChessBase"]
[SourceQuality "1"]
[TimeControl "40/6000+30:2400+30"]

1. d4 {[%emt 0:00:10]} Nf6 {[%emt 0:00:37]} 2. c4 {[%emt 0:00:21]} g6 {[%emt 0:00:20]} 3. Nc3 {[%emt 0:00:29]} Bg7 {[%emt 0:00:14]} 4. e4 {[%emt 0:00:39]} d6 {[%emt 0:00:30]} 5. h3 {[%emt 0:01:25]} e5 {[%emt 0:00:42]} 6. dxe5 {[%emt 0:13:41]} dxe5 {[%emt 0:00:13]} 7. Qxd8+ {[%emt 0:00:14]} Kxd8 {[%emt 0:00:10]} 8. Bg5 {[%emt 0:00:28]} Be6 {[%emt 0:06:35]} 9. O-O-O+ {[%emt 0:23:49]} Kc8 {[%emt 0:01:02]} 10. Nf3 {[%emt 0:04:20]} Nc6 {[%emt 0:01:17]} 11. Be2 {[%emt 0:02:30]} b6 {[%emt 0:05:20]} 12. Be3 {[%emt 0:06:29]} Kb7 {[%emt 0:05:20]} 13. Rd2 {[%emt 0:14:21]} Rad8 {[%emt 0:08:14]} 14. Rhd1 {[%emt 0:00:33]} Rxd2 {[%emt 0:02:01]} 15. Rxd2 {[%emt 0:00:11]} h6 {[%emt 0:00:33]} 16. Rd1 {[%emt 0:11:02]} Nd7 {[%emt 0:07:21]} 17. a3 {[%emt 0:04:31]} a5 {[%emt 0:02:00]} 18. Bf1 {[%emt 0:04:15]} Nc5 {[%emt 0:04:30]} 19. Bxc5 {[%emt 0:03:04]} bxc5 {[%emt 0:00:10]} 20. Na4 {[%emt 0:00:05]} Bf8 {[%emt 0:02:03]} 21. Ne1 {[%emt 0:00:10]} Ka7 {[%emt 0:04:01]} 22. Nd3 {[%emt 0:03:41]} Bxc4 {[%emt 0:01:37]} 23. Ndxc5 {[%emt 0:00:32]} Bxf1 {[%emt 0:01:42]} 24. Rxf1 {[%emt 0:00:04]} Nd4 {[%emt 0:03:00]} 25. Nd3 {[%emt 0:00:57]} Bd6 {[%emt 0:01:19]} 26. Nc3 {[%emt 0:00:49]} Nb3+ {[%emt 0:02:17]} 27. Kc2 {[%emt 0:00:54]} Rb8 {[%emt 0:01:13]} 28. f4 {[%emt 0:06:02]} Nd4+ {[%emt 0:00:40]} 29. Kd1 {[%emt 0:01:07]} Rb3 {[%emt 0:08:34]} 30. fxe5 {[%emt 0:02:13]} Bxa3 {[%emt 0:03:54]} 31. bxa3 {[%emt 0:00:19]} Rxc3 {[%emt 0:00:35]} 32. Kd2 {[%emt 0:00:13]} Rc4 {[%emt 0:10:08]} 33. Rxf7 {[%emt 0:01:43]} Nb3+ {[%emt 0:03:58]} 34. Ke3 {[%emt 0:01:29]} Rc3 {[%emt 0:01:53]} 35. e6 {[%emt 0:03:10]} Nc1 {[%emt 0:03:04]} 36. e7 {[%emt 0:01:09]} Rxd3+ {[%emt 0:02:19]} 37. Kf4 {[%emt 0:00:55]} Ne2+ {[%emt 0:01:29]} 38. Ke5 {[%emt 0:00:19]} 1-0

[Event "Fagernes Chess GM-Swiss 2024"]
[Site "Fagernes"]
[Date "2024.03.25"]
[Round "2"]
[White "Mihajlov, Svetoslav"]
[Black "Juodziukynas, Aidas"]
[Result "1/2-1/2"]
[ECO "E15"]
[WhiteElo "2094"]
[BlackElo "1893"]
[Annotator "NA RC"]
[PlyCount "139"]
[EventDate "2024.03.25"]
[EventType "swiss"]
[EventCountry "NOR"]
[SourceTitle "playchess.com"]
[Source "ChessBase"]
[SourceQuality "1"]
[TimeControl "40/6000+30:2400+30"]

1. d4 {[%emt 0:00:03]} Nf6 {[%emt 0:00:21]} 2. c4 {[%emt 0:00:07]} e6 {[%emt 0:00:20]} 3. Nf3 {[%emt 0:00:07]} b6 {[%emt 0:00:15]} 4. g3 {[%emt 0:00:21]} Ba6 {[%emt 0:00:43]} 5. b3 {[%emt 0:00:19]} d5 {[%emt 0:00:25]} 6. cxd5 {[%emt 0:02:32]} exd5 {[%emt 0:00:32]} 7. Bg2 {[%emt 0:00:34]} Bd6 {[%emt 0:03:05]} 8. O-O {[%emt 0:01:23]} O-O {[%emt 0:00:58]} 9. Bb2 {[%emt 0:05:11]} Re8 {[%emt 0:02:41]} 10. Re1 {[%emt 0:00:10]} Nbd7 {[%emt 0:01:38]} 11. Nc3 {[%emt 0:01:15]} Rc8 {[%emt 0:03:05]} 12. Nh4 {[%emt 0:03:06]} c6 {[%emt 0:03:00]} 13. Nf5 {[%emt 0:00:18]} Bb4 {[%emt 0:02:56]} 14. a3 {[%emt 0:00:23]} Bxc3 {[%emt 0:00:16]} 15. Bxc3 {[%emt 0:00:09]} Nf8 {[%emt 0:01:10]} 16. f3 {[%emt 0:04:52]} c5 {[%emt 0:12:52]} 17. e4 {[%emt 0:14:04]} dxe4 {[%emt 0:02:32]} 18. fxe4 {[%emt 0:00:58]} cxd4 {[%emt 0:00:30]} 19. Qxd4 {[%emt 0:00:29]} Qc7 {[%emt 0:03:26]} 20. Rac1 {[%emt 0:06:11]} Qc5 {[%emt 0:05:34]} 21. Qxc5 {[%emt 0:07:01]} Rxc5 {[%emt 0:00:01]} 22. Bxf6 {[%emt 0:00:29]} gxf6 {[%emt 0:00:11]} 23. Rxc5 {[%emt 0:02:06]} bxc5 {[%emt 0:00:01]} 24. Rc1 {[%emt 0:01:14]} Ne6 {[%emt 0:00:14]} 25. Ne3 {[%emt 0:00:48]} Rb8 {[%emt 0:01:50]} 26. Rc3 {[%emt 0:05:52]} Nd4 {[%emt 0:06:10]} 27. Rxc5 {[%emt 0:00:07]} Rxb3 {[%emt 0:01:38]} 28. Ra5 {[%emt 0:00:32]} Bb5 {[%emt 0:06:21]} 29. a4 {[%emt 0:07:00]} Ra3 {[%emt 0:07:47]} 30. Nf5 {[%emt 0:12:30]} Ra1+ {[%emt 0:01:38]} 31. Kf2 {[%emt 0:00:16]} Ra2+ {[%emt 0:00:03]} 32. Ke3 {[%emt 0:01:07]} Nxf5+ {[%emt 0:02:11]} 33. exf5 {[%emt 0:00:07]} a6 {[%emt 0:01:44]} 34. Bb7 {[%emt 0:01:26]} Ra3+ {[%emt 0:02:29]} 35. Kd4 {[%emt 0:04:37]} Rxa4+ {[%emt 0:00:48]} 36. Rxa4 {[%emt 0:00:08]} Bxa4 {[%emt 0:00:12]} 37. Bxa6 {[%emt 0:00:02]} Kg7 {[%emt 0:00:52]} 38. Bd3 {[%emt 0:02:38]} Bb3 {[%emt 0:00:31]} 39. Kc5 {[%emt 0:01:07]} Ba2 {[%emt 0:01:32]} 40. Kd6 {[%emt 0:00:10]} Bb3 {[%emt 0:00:15]} 41. Ke7 {[%emt 0:40:11]} Bd5 {[%emt 0:40:16]} 42. Bb5 {[%emt 0:00:39]} Be4 {[%emt 0:01:21]} 43. g4 {[%emt 0:07:17]} h6 {[%emt 0:00:21]} 44. Bc4 {[%emt 0:00:54]} Bf3 {[%emt 0:00:58]} 45. h3 {[%emt 0:00:11]} Bd1 {[%emt 0:01:54]} 46. Bxf7 {[%emt 0:00:13]} Bf3 {[%emt 0:00:18]} 47. Bh5 {[%emt 0:00:16]} Be2 {[%emt 0:00:52]} 48. h4 {[%emt 0:00:38]} Bf3 {[%emt 0:00:11]} 49. Kd6 {[%emt 0:01:45]} Be4 {[%emt 0:00:42]} 50. Kc5 {[%emt 0:00:09]} Kf8 {[%emt 0:00:45]} 51. Kd4 {[%emt 0:00:04]} Bg2 {[%emt 0:00:34]} 52. Ke3 {[%emt 0:00:06]} Ke7 {[%emt 0:00:45]} 53. Kf4 {[%emt 0:00:06]} Bd5 {[%emt 0:00:50]} 54. Bg6 {[%emt 0:01:34]} Bc6 {[%emt 0:00:44]} 55. g5 {[%emt 0:05:53]} hxg5+ {[%emt 0:00:25]} 56. hxg5 {[%emt 0:00:07]} fxg5+ {[%emt 0:00:16]} 57. Kxg5 {[%emt 0:00:08]} Kf8 {[%emt 0:00:59]} 58. Kf4 {[%emt 0:00:41]} Bd7 {[%emt 0:00:36]} 59. f6 {[%emt 0:00:06]} Bc8 {[%emt 0:00:14]} 60. Ke5 {[%emt 0:00:19]} Bg4 {[%emt 0:00:08]} 61. Be4 {[%emt 0:00:08]} Bh5 {[%emt 0:00:56]} 62. Bd5 {[%emt 0:00:07]} Bg4 {[%emt 0:01:02]} 63. Be6 {[%emt 0:00:08]} Bxe6 {[%emt 0:00:49]} 64. Kxe6 {[%emt 0:00:05]} Ke8 {[%emt 0:00:13]} 65. Ke5 {[%emt 0:00:05]} Kf8 {[%emt 0:00:33]} 66. Kf5 {[%emt 0:00:06]} Kf7 {[%emt 0:00:26]} 67. Kg5 {[%emt 0:00:05]} Kf8 {[%emt 0:00:23]} 68. Kg6 {[%emt 0:00:04]} Kg8 {[%emt 0:00:22]} 69. f7+ {[%emt 0:00:05]} Kf8 {[%emt 0:00:17]} 70. Kf6 {[%emt 0:00:04]} 1/2-1/2

[Event "Fagernes Chess GM-Swiss 2024"]
[Site "Fagernes"]
[Date "2024.03.25"]
[Round "2"]
[White "Havik, Victor"]
[Black "Elsness, Fredrik Valstad"]
[Result "1-0"]
[ECO "D92"]
[WhiteElo "2078"]
[BlackElo "1873"]
[Annotator "NA RC"]
[PlyCount "93"]
[EventDate "2024.03.25"]
[EventType "swiss"]
[EventCountry "NOR"]
[SourceTitle "playchess.com"]
[Source "ChessBase"]
[SourceQuality "1"]
[TimeControl "40/6000+30:2400+30"]

1. d4 {[%emt 0:00:15]} Nf6 {[%emt 0:01:03]} 2. c4 {[%emt 0:00:09]} g6 {[%emt 0:00:19]} 3. Nc3 {[%emt 0:00:23]} d5 {[%emt 0:00:08]} 4. Nf3 {[%emt 0:00:33]} Bg7 {[%emt 0:00:13]} 5. Bf4 {[%emt 0:00:07]} O-O {[%emt 0:00:29]} 6. Rc1 {[%emt 0:00:57]} dxc4 {[%emt 0:01:32]} 7. e3 {[%emt 0:00:33]} c5 {[%emt 0:03:12]} 8. Bxc4 {[%emt 0:01:27]} Bg4 {[%emt 0:03:07]} 9. dxc5 {[%emt 0:23:04]} Qa5 {[%emt 0:01:10]} 10. h3 {[%emt 0:03:43]} Bxf3 {[%emt 0:01:30]} 11. Qxf3 {[%emt 0:00:45]} Nc6 {[%emt 0:01:06]} 12. O-O {[%emt 0:04:26]} Qxc5 {[%emt 0:01:07]} 13. Nb5 {[%emt 0:05:25]} Qb4 {[%emt 0:04:23]} 14. b3 {[%emt 0:09:21]} Rac8 {[%emt 0:08:27]} 15. Rfd1 {[%emt 0:12:26]} a6 {[%emt 0:08:58]} 16. Nd4 {[%emt 0:05:14]} Qa5 {[%emt 0:05:34]} 17. Nxc6 {[%emt 0:02:08]} Rxc6 {[%emt 0:01:42]} 18. a4 {[%emt 0:00:18]} Rfc8 {[%emt 0:02:52]} 19. g4 {[%emt 0:03:08]} e5 {[%emt 0:03:49]} 20. Bg5 {[%emt 0:06:00]} Qc7 {[%emt 0:11:08]} 21. Bxf6 {[%emt 0:04:05]} Bxf6 {[%emt 0:00:31]} 22. Rd5 {[%emt 0:00:28]} Bh4 {[%emt 0:08:50]} 23. Qd1 {[%emt 0:04:58]} Rf6 {[%emt 0:02:49]} 24. Rd7 {[%emt 0:08:09]} Bxf2+ {[%emt 0:01:04]} 25. Kh2 {[%emt 0:00:36]} Qb8 {[%emt 0:00:52]} 26. Bxf7+ {[%emt 0:01:09]} Rxf7 {[%emt 0:01:01]} 27. Rxc8+ {[%emt 0:00:08]} Qxc8 {[%emt 0:00:47]} 28. Rd8+ {[%emt 0:00:03]} Qxd8 {[%emt 0:00:28]} 29. Qxd8+ {[%emt 0:00:05]} Kg7 {[%emt 0:00:27]} 30. Qd5 {[%emt 0:00:25]} Re7 {[%emt 0:00:54]} 31. Qc5 {[%emt 0:03:20]} Bh4 {[%emt 0:01:31]} 32. Kg2 {[%emt 0:00:52]} Kf7 {[%emt 0:03:33]} 33. Kf3 {[%emt 0:01:46]} Bf6 {[%emt 0:03:47]} 34. Qd5+ {[%emt 0:01:23]} Kg7 {[%emt 0:01:05]} 35. Ke4 {[%emt 0:00:09]} h6 {[%emt 0:01:03]} 36. Qc4 {[%emt 0:03:57]} Rd7 {[%emt 0:01:44]} 37. Qc8 {[%emt 0:01:02]} Re7 {[%emt 0:01:01]} 38. Qc3 {[%emt 0:00:38]} Rd7 {[%emt 0:01:21]} 39. Qe1 {[%emt 0:00:05]} g5 {[%emt 0:01:33]} 40. Qb4 {[%emt 0:00:57]} Rf7 {[%emt 0:01:51]} 41. Qd6 {[%emt 0:45:30]} Re7 {[%emt 0:40:44]} 42. Kf5 {[%emt 0:00:00]} Rf7 {[%emt 0:00:00]} 43. Qb8 {[%emt 0:00:00]} Re7 {[%emt 0:00:00]} 44. Qd8 {[%emt 0:00:00]} Rf7 {[%emt 0:00:00]} 45. Qe8 {[%emt 0:00:00]} Re7 {[%emt 0:00:00]} 46. Qg6+ {[%emt 0:00:00]} Kf8 {[%emt 0:00:00]} 47. Kxf6 {[%emt 0:00:00]} 1-0

[Event "Fagernes Chess GM-Swiss 2024"]
[Site "Fagernes"]
[Date "2024.03.25"]
[Round "2"]
[White "Sian, Shadi"]
[Black "Avetisyan, Ani"]
[Result "1-0"]
[ECO "D37"]
[WhiteElo "2076"]
[BlackElo "1840"]
[Annotator "NA RC"]
[PlyCount "65"]
[EventDate "2024.03.25"]
[EventType "swiss"]
[EventCountry "NOR"]
[SourceTitle "playchess.com"]
[Source "ChessBase"]
[SourceQuality "1"]
[TimeControl "40/6000+30:2400+30"]

1. d4 {[%emt 0:02:16]} d5 {[%emt 0:00:11]} 2. c4 {[%emt 0:00:06]} e6 {[%emt 0:00:10]} 3. Nc3 {[%emt 0:00:03]} Be7 {[%emt 0:00:05]} 4. Nf3 {[%emt 0:00:48]} Nf6 {[%emt 0:00:19]} 5. Bf4 {[%emt 0:00:37]} O-O {[%emt 0:00:36]} 6. e3 {[%emt 0:00:15]} Nbd7 {[%emt 0:00:47]} 7. cxd5 {[%emt 0:06:22]} Nxd5 {[%emt 0:01:38]} 8. Nxd5 {[%emt 0:03:08]} exd5 {[%emt 0:01:05]} 9. a3 {[%emt 0:03:19]} c6 {[%emt 0:01:07]} 10. Bd3 {[%emt 0:00:23]} Re8 {[%emt 0:14:12]} 11. O-O {[%emt 0:00:30]} Nf8 {[%emt 0:01:17]} 12. Qc2 {[%emt 0:03:17]} Ng6 {[%emt 0:01:33]} 13. Bg3 {[%emt 0:03:16]} Bd6 {[%emt 0:05:48]} 14. b4 {[%emt 0:01:54]} a6 {[%emt 0:08:07]} 15. Nd2 {[%emt 0:13:47]} Qf6 {[%emt 0:10:39]} 16. Nb3 {[%emt 0:04:52]} Nf8 {[%emt 0:03:24]} 17. Nc5 {[%emt 0:07:34]} h5 {[%emt 0:03:30]} 18. Qe2 {[%emt 0:08:08]} g6 {[%emt 0:03:01]} 19. Bxd6 {[%emt 0:09:57]} Qxd6 {[%emt 0:00:07]} 20. Qf3 {[%emt 0:00:45]} Kg7 {[%emt 0:16:16]} 21. Qg3 {[%emt 0:04:05]} Qe7 {[%emt 0:10:25]} 22. h3 {[%emt 0:01:54]} Nh7 {[%emt 0:09:55]} 23. Rfe1 {[%emt 0:01:26]} Nf6 {[%emt 0:04:02]} 24. Rad1 {[%emt 0:05:38]} Rd8 {[%emt 0:06:03]} 25. Qf4 {[%emt 0:04:06]} Ne8 {[%emt 0:03:27]} 26. f3 {[%emt 0:02:48]} Nd6 {[%emt 0:02:40]} 27. Qe5+ {[%emt 0:02:47]} Qxe5 {[%emt 0:00:36]} 28. dxe5 {[%emt 0:00:02]} Nb5 {[%emt 0:00:25]} 29. a4 {[%emt 0:02:27]} Nc7 {[%emt 0:01:39]} 30. a5 {[%emt 0:02:37]} Ne6 {[%emt 0:00:57]} 31. Na4 {[%emt 0:00:59]} Bd7 {[%emt 0:00:59]} 32. Bb1 {[%emt 0:03:47]} Nc7 {[%emt 0:00:53]} 33. f4 {[%emt 0:06:17]} 1-0

[Event "Fagernes Chess GM-Swiss 2024"]
[Site "Fagernes"]
[Date "2024.03.25"]
[Round "2"]
[White "Amundsen, Ask"]
[Black "Melaa, Sondre"]
[Result "1/2-1/2"]
[ECO "A07"]
[WhiteElo "2069"]
[BlackElo "2285"]
[Annotator "RC"]
[PlyCount "73"]
[EventDate "2024.03.25"]
[EventType "swiss"]
[EventCountry "NOR"]
[SourceTitle "playchess.com"]
[Source "ChessBase"]
[SourceQuality "1"]
[TimeControl "40/6000+30:2400+30"]

1. Nf3 {[%emt 0:00:51]} d5 {[%emt 0:09:49]} 2. g3 {[%emt 0:00:10]} g6 {[%emt 0:00:23]} 3. Bg2 {[%emt 0:00:11]} Bg7 {[%emt 0:00:07]} 4. O-O {[%emt 0:00:22]} e5 {[%emt 0:00:10]} 5. d3 {[%emt 0:00:17]} Nc6 {[%emt 0:00:30]} 6. Nc3 {[%emt 0:02:10]} d4 {[%emt 0:00:38]} 7. Ne4 {[%emt 0:01:02]} Nge7 {[%emt 0:00:27]} 8. c3 {[%emt 0:02:47]} h6 {[%emt 0:00:50]} 9. cxd4 {[%emt 0:00:19]} exd4 {[%emt 0:00:08]} 10. Qa4 {[%emt 0:00:51]} O-O {[%emt 0:01:03]} 11. b4 {[%emt 0:01:03]} a6 {[%emt 0:01:19]} 12. a3 {[%emt 0:02:01]} Re8 {[%emt 0:03:32]} 13. Bb2 {[%emt 0:03:26]} Nf5 {[%emt 0:01:42]} 14. Rac1 {[%emt 0:06:57]} Rb8 {[%emt 0:05:26]} 15. Rfe1 {[%emt 0:09:08]} Be6 {[%emt 0:02:15]} 16. Nfd2 {[%emt 0:05:34]} Bd5 {[%emt 0:07:09]} 17. Nc5 {[%emt 0:13:56]} Bxg2 {[%emt 0:12:05]} 18. Kxg2 {[%emt 0:00:04]} Ne5 {[%emt 0:03:41]} 19. Nf3 {[%emt 0:07:43]} Nxf3 {[%emt 0:04:37]} 20. exf3 {[%emt 0:00:10]} c6 {[%emt 0:04:52]} 21. Qc2 {[%emt 0:16:11]} Re7 {[%emt 0:03:26]} 22. Qd2 {[%emt 0:15:48]} Qc7 {[%emt 0:08:54]} 23. Rxe7 {[%emt 0:01:57]} Qxe7 {[%emt 0:00:06]} 24. Re1 {[%emt 0:00:26]} Qd6 {[%emt 0:00:15]} 25. Qc1 {[%emt 0:04:29]} Qc7 {[%emt 0:06:27]} 26. Qc4 {[%emt 0:02:25]} a5 {[%emt 0:02:05]} 27. Bc1 {[%emt 0:04:31]} Ra8 {[%emt 0:07:41]} 28. Bf4 {[%emt 0:01:49]} Qc8 {[%emt 0:00:09]} 29. b5 {[%emt 0:01:55]} Bf8 {[%emt 0:09:18]} 30. b6 {[%emt 0:02:45]} Qd8 {[%emt 0:03:46]} 31. Bc7 {[%emt 0:00:43]} Qg5 {[%emt 0:00:25]} 32. Ne4 {[%emt 0:01:07]} Qe7 {[%emt 0:01:44]} 33. f4 {[%emt 0:01:00]} Bg7 {[%emt 0:02:39]} 34. Qc5 {[%emt 0:00:38]} Qe6 {[%emt 0:01:50]} 35. Qc4 {[%emt 0:01:15]} Qe7 {[%emt 0:01:42]} 36. Qc5 {[%emt 0:00:09]} Qe6 {[%emt 0:00:54]} 37. Qc4 {[%emt 0:01:22]} 1/2-1/2